bitfinex/quotes_SOLUSD_20250611
["timestamp","ask_amount","ask_price","bid_price","bid_amount"]
[1749633395722,26.0,166.69,166.67,41.85151722]
[1749633396628,26.0,166.69,166.67,24.98]
[1749633396812,26.0,166.74,166.67,41.85151722]
[1749633397020,26.0,166.69,166.68,16.87151722]
[1749633397518,26.0,166.7,166.68,16.87151722]
[1749633397722,26.0,166.7,166.69,24.92]
[1749633400820,26.0,166.7,166.63,16.66991359]
[1749633400821,26.0,166.68,166.63,16.66991359]
[1749633401132,26.0,166.68,166.59,24.92]
[1749633401133,26.0,166.61,166.59,24.92]
[1749633401331,26.0,166.61,166.59,24.94]
[1749633401632,26.0,166.61,166.59,41.81151722]
[1749633402008,16.87151722,166.63,166.59,24.94]
[1749633402216,16.87151722,166.62,166.59,24.94]
[1749633402518,26.0,166.6,166.59,24.94]
[1749633403219,26.0,166.6,166.56,23.3815227]
[1749633403410,16.87151722,166.6,166.57,24.92]
[1749633403740,16.87151722,166.6,166.54,18.64964886]
[1749633404039,16.87151722,166.61,166.57,16.87151722]
[1749633404218,26.0,166.65,166.58,24.94]
[1749633404418,16.87151722,166.61,166.58,24.94]
[1749633404618,26.0,166.65,166.58,24.94]
[1749633405133,16.87151722,166.61,166.58,24.94]
[1749633405325,26.0,166.59,166.58,24.94]
[1749633406440,26.0,166.65,166.58,41.81151722]
[1749633406617,26.0,166.6,166.58,41.81151722]
[1749633408438,26.0,166.65,166.59,35.52116608]
[1749633408610,6.0454,166.68,166.59,35.52116608]
[1749633408611,26.0,166.63,166.61,16.87151722]
[1749633408813,16.87151722,166.65,166.62,24.94]
[1749633409017,26.0,166.63,166.62,24.94]
[1749633410263,18.08130702,166.63,166.62,24.94]
[1749633414422,16.87151722,166.66,166.62,24.94]
[1749633414624,26.0,166.63,166.62,24.94]
[1749633415455,42.87151722,166.63,166.58,16.87151722]
[1749633415631,16.87151722,166.62,166.59,24.9]
[1749633416037,16.87151722,166.62,166.58,16.87151722]
[1749633416233,26.0,166.65,166.6,24.9]
[1749633416435,26.0,166.62,166.6,24.9]
[1749633416750,26.0,166.62,166.6,41.77151722]
[1749633416954,26.0,166.64,166.61,16.87151722]
[1749633417250,26.0,166.64,166.62,41.77151722]
[1749633417436,16.87151722,166.67,166.62,41.77151722]
[1749633418049,26.0,166.64,166.62,41.77151722]
[1749633418247,26.0,166.64,166.62,24.9]
[1749633419038,26.0,166.64,166.62,41.77151722]
[1749633421952,26.0,166.69,166.62,41.77151722]
[1749633422138,26.0,166.64,166.62,41.77151722]
[1749633422456,26.0,166.64,166.62,24.9]
[1749633423450,26.0,166.64,166.6,16.87151722]
[1749633423749,26.0,166.65,166.62,24.88]
[1749633423955,42.87151722,166.65,166.62,24.88]
[1749633424463,6.4327,166.72,166.64,16.87151722]
[1749633424634,7.0518,166.74,166.69,16.87151722]
[1749633424843,23.92331722,166.74,166.69,41.75151722]
[1749633425157,16.87151722,166.75,166.7,16.87151722]
[1749633425456,26.0,166.73,166.71,41.75151722]
[1749633425756,16.87151722,166.77,166.72,16.87151722]
[1749633425943,26.0,166.74,166.73,24.88]
[1749633426746,2.48773009,166.78,166.73,24.88]
[1749633427055,26.0,166.76,166.73,24.88]
[1749633428262,2.48773009,166.78,166.75,16.87151722]
[1749633428441,2.48773009,166.78,166.76,24.88]
[1749633428637,16.87151722,166.77,166.76,24.88]
[1749633429163,45.35924731,166.78,166.76,24.88]
[1749633429544,19.35924731,166.78,166.76,24.88]
[1749633429957,2.48773009,166.78,166.76,24.88]
[1749633430143,1.90841367,166.78,166.76,24.88]
[1749633430344,16.87151722,166.77,166.76,24.88]
[1749633430643,42.87151722,166.77,166.76,4.41065339]
[1749633431057,26.0,166.75,166.74,29.69899174]
[1749633431354,42.87151722,166.75,166.74,34.11212365]
[1749633431550,42.87151722,166.75,166.74,29.69899174]
[1749633431951,1e-08,166.78,166.74,29.69899174]
[1749633432259,16.87151722,166.77,166.74,29.69899174]
[1749633432559,1e-08,166.78,166.74,29.69899174]
[1749633432860,16.87151722,166.76,166.74,29.69899174]
[1749633433860,1e-08,166.78,166.75,18.64964886]
[1749633433861,16.87151723,166.78,166.75,18.64964886]
[1749633434061,16.87151723,166.78,166.76,24.9]
[1749633434450,16.87151722,166.77,166.76,24.9]
[1749633434651,16.87151723,166.78,166.76,24.9]
[1749633434847,16.87151722,166.77,166.76,24.9]
[1749633435367,1e-08,166.78,166.76,24.9]
[1749633435368,1e-08,166.78,166.77,24.64593116]
[1749633435544,6.2327,166.89,166.78,18.64964886]
[1749633435750,6.2327,166.89,166.79,24.9]
[1749633435951,26.0,166.86,166.79,24.9]
[1749633436264,16.87151722,166.82,166.8,18.64964886]
[1749633436561,59.74303444,166.81,166.74,4.79899174]
[1749633436759,16.87151722,166.75,166.7,7.53848]
[1749633436966,16.87151722,166.72,166.7,15.29484318]
[1749633437172,8.0737,166.84,166.71,24.96]
[1749633437462,16.87151722,166.72,166.69,6.2494]
[1749633437665,16.87151722,166.7,166.69,27.89395891]
[1749633437851,1.90295435,166.7,166.69,52.85395891]
[1749633438166,1.90295435,166.7,166.69,52.83395891]
[1749633438362,1.90295435,166.7,166.69,51.4681172]
[1749633438871,26.0,166.77,166.69,51.4681172]
[1749633438872,16.87151722,166.71,166.7,18.64964886]
[1749633439069,1.90295435,166.71,166.7,18.64964886]
[1749633439254,26.0,166.77,166.7,18.64964886]
[1749633439460,26.0,166.77,166.69,32.81846834]
[1749633439772,16.87151722,166.73,166.69,32.81846834]
[1749633440378,16.87151722,166.74,166.69,55.6891136]
[1749633440564,16.87151722,166.74,166.7,35.52116608]
[1749633440871,16.87151722,166.75,166.7,35.52116608]
[1749633441064,16.87151722,166.75,166.7,125.42116608]
[1749633441463,26.0,166.77,166.7,125.42116608]
[1749633441464,16.87151722,166.73,166.71,24.94]
[1749633442072,16.87151722,166.74,166.71,24.94]
[1749633442459,26.0,166.77,166.71,24.94]
[1749633442660,16.87151722,166.74,166.71,114.84]
[1749633443469,26.0,166.77,166.72,18.64964886]
[1749633443646,16.87151722,166.75,166.73,24.94]
[1749633443851,16.87151722,166.76,166.73,24.94]
[1749633444251,26.0,166.77,166.73,114.84]
[1749633444252,42.87151722,166.77,166.73,114.84]
[1749633444453,16.87151722,166.77,166.73,114.84]
[1749633444751,16.87151722,166.76,166.73,114.84]
[1749633445575,26.0,166.77,166.73,114.84]
[1749633445876,16.87151722,166.76,166.73,114.84]
[1749633446077,26.0,166.81,166.73,114.84]
[1749633446280,16.87151722,166.76,166.73,114.84]
[1749633446781,16.87151722,166.75,166.73,114.84]
[1749633447157,26.0,166.78,166.73,114.84]
[1749633447357,16.87151722,166.75,166.73,114.84]
[1749633447582,26.0,166.77,166.73,114.84]
[1749633448366,16.87151722,166.8,166.73,114.84]
[1749633449476,16.87151722,166.8,166.74,4.42430016]
[1749633449674,16.87151722,166.8,166.75,24.92]
[1749633449977,16.87151722,166.8,166.76,4.39980949]
[1749633450168,16.87151722,166.8,166.77,29.29984437]
[1749633450367,16.87151722,166.8,166.77,24.9]
[1749633450568,16.87151722,166.8,166.78,4.39978142]
[1749633450768,16.87151722,166.79,166.77,24.9]
[1749633450968,16.87151722,166.78,166.77,24.9]
[1749633451385,10.1145846,166.78,166.77,24.9]
[1749633452080,10.1145846,166.8,166.77,24.9]
[1749633452262,10.1145846,166.78,166.77,24.9]
[1749633454168,10.1145846,166.79,166.77,24.9]
[1749633454486,11.6295846,166.88,166.77,24.9]
[1749633454666,10.1145846,166.78,166.77,24.9]
[1749633455186,10.1145846,166.78,166.77,24.92]
[1749633461079,10.1145846,166.78,166.71,89.9]
[1749633461293,18.64964886,166.85,166.71,89.9]
[1749633461294,1.6224,166.84,166.72,53.66423346]
[1749633461466,5.54,166.89,166.72,53.66423346]
[1749633461467,10.1145846,166.88,166.8,26.0]
[1749633461673,5.352783,166.92,166.8,26.0]
[1749633461674,3.730383,166.92,166.84,26.0]
[1749633461874,3.730383,166.92,166.83,10.1145846]
[1749633461875,10.1145846,166.89,166.85,51.0]
[1749633462086,10.1145846,166.86,166.85,25.0]
[1749633462379,10.1145846,166.86,166.85,25.02]
[1749633462576,3.730383,166.92,166.85,25.02]
[1749633462780,10.1145846,166.86,166.85,25.02]
[1749633462966,10.1145846,166.86,166.85,29.41948371]
[1749633463167,10.1145846,166.86,166.85,25.02]
[1749633463793,10.1145846,166.86,166.85,29.42400622]
[1749633463988,10.1145846,166.88,166.85,29.42400622]
[1749633464187,10.1145846,166.86,166.85,25.02]
[1749633464399,10.1145846,166.86,166.85,29.42411814]
[1749633464696,10.1145846,166.86,166.85,25.02]
[1749633465200,10.1145846,166.86,166.85,29.42457224]
[1749633465382,16.84214723,166.86,166.85,29.42472954]
[1749633465582,16.84214723,166.86,166.85,29.42507959]
[1749633465897,16.84214723,166.86,166.85,25.02]
[1749633466194,16.84214723,166.86,166.85,29.42507704]
[1749633466407,16.84214723,166.9,166.85,29.42507704]
[1749633466408,16.84214723,166.9,166.85,4.40512283]
[1749633466576,16.84214723,166.86,166.83,140.92]
[1749633466780,16.84214723,166.9,166.84,4.40527972]
[1749633467013,16.84214723,166.85,166.83,140.92]
[1749633467172,16.84214723,166.84,166.83,114.92]
[1749633467373,16.84214723,166.84,166.83,119.33097473]
[1749633467578,16.84214723,166.84,166.83,119.33119059]
[1749633468399,16.84214723,166.84,166.83,119.32631615]
[1749633468903,16.84214723,166.84,166.83,119.32608522]
[1749633469291,16.84214723,166.9,166.83,119.33988485]
[1749633469508,16.84214723,166.85,166.84,4.41984068]
[1749633469688,16.84214723,166.86,166.84,94.31984068]
[1749633469883,16.84214723,166.86,166.85,29.41907427]
[1749633470087,16.84214723,166.86,166.85,29.4193419]
[1749633470390,16.84214723,166.86,166.85,29.41935077]
[1749633470703,16.84214723,166.86,166.85,29.41937389]
[1749633471097,16.84214723,166.86,166.85,29.41971914]
[1749633471390,16.84214723,166.86,166.85,4.42005679]
[1749633471593,16.84214723,166.86,166.85,4.42193139]
[1749633471792,16.84214723,166.86,166.85,4.42194357]
[1749633472012,16.84214723,166.86,166.85,4.42177998]
[1749633472390,16.84214723,166.86,166.85,4.42190017]
[1749633472585,16.84214723,166.86,166.85,4.42186964]
[1749633473006,16.84214723,166.86,166.83,24.98]
[1749633473209,16.84214723,166.84,166.83,24.98]
[1749633473399,16.84214723,166.84,166.83,29.40204016]
[1749633473610,16.84214723,166.84,166.83,29.40233012]
[1749633473797,16.84214723,166.84,166.83,29.40227012]
[1749633473989,16.84214723,166.9,166.83,24.98]
[1749633474194,16.84214723,166.84,166.83,114.88]
[1749633474387,16.84214723,166.84,166.83,119.30160751]
[1749633474584,16.84214723,166.84,166.83,119.29997048]
[1749633474993,16.84214723,166.84,166.83,93.81993996]
[1749633475390,16.84214723,166.84,166.83,93.81977828]
[1749633476014,16.84214723,166.84,166.83,93.81999458]
[1749633476194,16.84214723,166.84,166.83,118.77999404]
[1749633476514,22.40214723,166.9,166.83,118.77999404]
[1749633476813,16.84214723,166.84,166.83,114.36]
[1749633476987,16.84214723,166.9,166.83,118.7799505]
[1749633477189,22.40214723,166.9,166.84,4.4197342]
[1749633477383,22.40214723,166.9,166.83,114.36]
[1749633477384,16.84214723,166.85,166.83,89.4]
[1749633477602,22.40214723,166.9,166.84,24.96]
[1749633477833,22.40214723,166.9,166.85,4.41780469]
[1749633478017,22.40214723,166.9,166.86,4.41780469]
[1749633478309,22.40214723,166.9,166.87,4.41773355]
[1749633478613,22.40214723,166.9,166.88,4.41781018]
[1749633478798,16.84214723,166.89,166.84,24.96]
[1749633479116,22.40214723,166.9,166.85,4.41782163]
[1749633479295,22.40214723,166.9,166.86,4.41782163]
[1749633479606,22.40214723,166.9,166.84,24.96]
[1749633480298,22.40214723,166.9,166.85,4.41478578]
[1749633480514,16.84214723,166.86,166.85,4.41478578]
[1749633480891,16.84214723,166.86,166.85,8.82845652]
[1749633481819,16.84214723,166.86,166.85,8.82821112]
[1749633481989,16.84214723,166.9,166.85,8.82821038]
[1749633482190,16.84214723,166.9,166.86,29.3334246]
[1749633482408,16.84214723,166.9,166.87,4.41277819]
[1749633482613,16.84214723,166.9,166.88,4.41274058]
[1749633482911,16.84214723,166.9,166.86,24.92]
[1749633483117,16.84214723,166.9,166.71,29.99196919]
[1749633483118,18.64964886,166.87,166.75,91.0195]
[1749633483319,12.0889,166.88,166.76,41.76214723]
[1749633483488,12.0889,166.88,166.79,26.0]
[1749633483489,16.84214723,166.81,166.79,26.0]
[1749633483684,6.5289,166.88,166.8,24.98]
[1749633483916,16.84214723,166.9,166.8,24.98]
[1749633484101,16.84214723,166.85,166.8,24.98]
[1749633484295,16.84214723,166.84,166.8,24.98]
[1749633484795,16.84214723,166.83,166.79,114.9]
[1749633484994,16.84214723,166.9,166.79,114.9]
[1749633484995,16.84214723,166.82,166.79,114.9]
[1749633485203,16.84214723,166.81,166.77,89.4]
[1749633485698,16.84214723,166.8,166.77,89.4]
[1749633485894,16.84214723,166.8,166.78,25.0]
[1749633486207,18.64964886,166.89,166.78,25.0]
[1749633486415,16.84214723,166.81,166.78,25.0]
[1749633486804,16.84214723,166.81,166.8,26.0]
[1749633487115,16.84214723,166.9,166.81,26.0]
[1749633487322,10.10557179,166.83,166.82,24.98]
[1749633489303,10.10557179,166.83,166.8,26.0]
[1749633489501,18.64964886,166.87,166.81,24.98]
[1749633489925,18.64964886,166.87,166.8,24.98]
[1749633490715,10.10557179,166.82,166.8,24.98]
[1749633491521,10.10557179,166.81,166.8,24.98]
[1749633493023,10.10557179,166.81,166.78,115.4]
[1749633493223,10.10557179,166.81,166.79,24.98]
[1749633493422,10.10557179,166.8,166.79,24.98]
[1749633494122,10.10557179,166.8,166.78,115.4]
[1749633494315,18.64964886,166.87,166.79,24.96]
[1749633495038,18.64964886,166.84,166.75,89.4]
[1749633495225,18.64964886,166.84,166.72,6.1787]
[1749633495226,18.64964886,166.84,166.76,24.96]
[1749633495408,10.10557179,166.77,166.76,24.96]
[1749633499909,10.10557179,166.77,166.76,24.94]
[1749633502230,10.10557179,166.77,166.72,89.4]
[1749633502430,10.10557179,166.73,166.72,89.4]
[1749633502731,10.10557179,166.73,166.72,24.92]
[1749633503730,10.10557179,166.73,166.68,111.89303599]
[1749633504037,10.10557179,166.74,166.7,24.92]
[1749633505528,10.10557179,166.76,166.71,10.10557179]
[1749633506423,10.10557179,166.75,166.7,41.0241144]
[1749633506611,10.10557179,166.76,166.71,10.10557179]
[1749633506808,10.10557179,166.76,166.71,99.50557179]
[1749633507211,10.10557179,166.77,166.72,10.10557179]
[1749633507415,10.10557179,166.77,166.73,24.92]
[1749633508831,5.35834527,166.77,166.73,30.91770143]
[1749633509136,5.35834527,166.77,166.73,24.92]
[1749633509342,10.10557179,166.76,166.73,24.92]
[1749633512144,10.10557179,166.76,166.73,114.32]
[1749633514048,10.10557179,166.77,166.73,114.32]
[1749633515845,10.10557179,166.77,166.73,120.31771924]
[1749633516035,10.10557179,166.78,166.73,130.42329103]
[1749633516734,10.10557179,166.78,166.73,120.31771924]
[1749633516931,10.10557179,166.8,166.75,10.10557179]
[1749633517144,10.10557179,166.81,166.76,34.96557179]
[1749633518961,10.10557179,166.8,166.76,34.96557179]
[1749633519158,10.10557179,166.8,166.76,24.86]
[1749633519630,10.10557179,166.8,166.77,4.42612216]
[1749633519961,10.10557179,166.8,166.78,29.26612216]
[1749633520251,10.10557179,166.8,166.79,4.42612216]
[1749633520557,20.21114358,166.8,166.78,89.4]
[1749633520748,10.10557179,166.79,166.78,89.4]
[1749633521058,10.10557179,166.79,166.78,93.82849011]
[1749633521229,10.10557179,166.79,166.78,93.82849066]
[1749633521424,10.10557179,166.79,166.78,89.4]
[1749633521760,10.10557179,166.79,166.78,93.82876764]
[1749633522057,10.10557179,166.79,166.78,93.82922975]
[1749633522235,10.10557179,166.79,166.78,93.82939898]
[1749633522434,10.10557179,166.79,166.78,93.82944276]
[1749633522755,10.10557179,166.79,166.78,89.4]
[1749633522948,10.10557179,166.79,166.78,93.82986131]
[1749633523150,10.10557179,166.79,166.78,93.82988041]
[1749633523529,10.10557179,166.79,166.78,93.82964949]
[1749633523731,10.10557179,166.79,166.78,93.82978425]
[1749633523926,10.10557179,166.79,166.78,4.4299529]
[1749633524353,10.10557179,166.79,166.78,4.4339902]
[1749633524740,10.10557179,166.79,166.78,4.43392058]
[1749633525344,10.10557179,166.79,166.76,114.24]
[1749633525545,10.10557179,166.77,166.76,114.24]
[1749633525747,10.10557179,166.77,166.76,118.67661879]
[1749633525934,10.10557179,166.77,166.76,114.24]
[1749633526263,10.10557179,166.77,166.76,118.67707872]
[1749633526662,18.64964886,166.84,166.76,114.24]
[1749633526861,10.10557179,166.77,166.76,24.84]
[1749633527061,10.10557179,166.77,166.76,29.27718857]
[1749633527267,10.10557179,166.77,166.76,29.27740197]
[1749633527437,10.10557179,166.77,166.76,24.84]
[1749633527757,10.10557179,166.77,166.76,29.27744778]
[1749633527953,10.10557179,166.77,166.76,24.84]
[1749633528354,10.10557179,166.77,166.76,4.4374605]
[1749633528556,10.10557179,166.77,166.76,29.23768251]
[1749633528762,10.10557179,166.78,166.76,29.2375199]
[1749633528977,10.10557179,166.78,166.77,4.43671601]
[1749633529146,18.64964886,166.84,166.77,4.43671601]
[1749633529346,10.10557179,166.78,166.76,114.2]
[1749633529672,10.10557179,166.78,166.77,4.43654423]
[1749633529965,10.10557179,166.78,166.77,4.43630631]
[1749633530366,10.10557179,166.78,166.77,4.43626875]
[1749633530550,10.10557179,166.78,166.77,4.44154708]
[1749633530753,10.10557179,166.78,166.77,4.44186226]
[1749633530940,10.10557179,166.78,166.73,24.8]
[1749633531159,1.5772,166.79,166.74,4.44172899]
[1749633531369,1.5772,166.79,166.75,4.44247472]
[1749633531541,1.5772,166.79,166.76,4.44242429]
[1749633531741,1.5772,166.79,166.77,4.44235297]
[1749633531965,20.22684886,166.79,166.71,24.8]
[1749633532346,10.10557179,166.72,166.71,24.8]
[1749633532962,10.10557179,166.72,166.69,89.4]
[1749633533185,10.10557179,166.7,166.64,89.4]
[1749633533462,10.10557179,166.7,166.62,12.65370073]
[1749633533463,10.10557179,166.65,166.62,24.82]
[1749633533668,10.10557179,166.63,166.61,4.81791998]
[1749633533875,10.10557179,166.63,166.62,24.82]
[1749633534162,6.3089,166.7,166.62,24.82]
[1749633534361,10.10557179,166.64,166.62,24.82]
[1749633534545,10.10557179,166.63,166.62,26.0]
[1749633534746,10.10557179,166.63,166.62,50.8]
[1749633534942,10.10557179,166.63,166.54,17.19190073]
[1749633535150,10.10557179,166.6,166.58,24.82]
[1749633535455,10.10557179,166.59,166.58,24.82]
[1749633535663,10.10557179,166.59,166.57,30.72468421]
[1749633535855,10.10557179,166.59,166.58,24.82]
[1749633536250,10.10557179,166.64,166.54,16.25407179]
[1749633536457,10.10557179,166.59,166.58,26.0]
[1749633536642,10.10557179,166.59,166.58,50.82]
[1749633536843,10.10557179,166.59,166.54,7.8280912]
[1749633537043,10.10557179,166.58,166.57,26.0]
[1749633537563,10.10557179,166.58,166.57,50.82]
[1749633538364,10.10557179,166.59,166.57,50.82]
[1749633540247,10.10557179,166.64,166.48,1.5567]
[1749633540248,10.10557179,166.58,166.48,1.5567]
[1749633540451,10.10557179,166.52,166.49,24.86]
[1749633540771,10.10557179,166.52,166.48,1.5567]
[1749633540951,10.10557179,166.52,166.51,26.0]
[1749633541275,10.10557179,166.52,166.48,1.5567]
[1749633541589,10.10557179,166.49,166.47,4.79422037]
[1749633541877,10.10557179,166.56,166.43,1.5108]
[1749633541878,10.10557179,166.48,166.43,1.5108]
[1749633542057,10.10557179,166.47,166.44,24.88]
[1749633542248,10.10557179,166.47,166.46,26.0]
[1749633542447,10.10557179,166.48,166.47,26.0]
[1749633542879,10.10557179,166.51,166.47,50.88]
[1749633543168,10.10557179,166.48,166.47,50.88]
[1749633543671,10.10557179,166.48,166.43,4.86073366]
[1749633543873,34.19522065,166.56,166.41,6.4052]
[1749633543874,34.19522065,166.56,166.45,24.88]
[1749633544773,34.19522065,166.56,166.44,26.0]
[1749633544947,10.10557179,166.46,166.45,24.9]
[1749633545774,10.10557179,166.46,166.45,29.30625786]
[1749633545947,10.10557179,166.46,166.45,24.9]
[1749633546148,10.10557179,166.46,166.45,29.3056299]
[1749633546349,10.10557179,166.46,166.45,29.30560339]
[1749633546546,34.19522065,166.56,166.45,29.30557302]
[1749633546772,10.10557179,166.47,166.46,4.40500482]
[1749633547074,10.10557179,166.56,166.46,4.40056897]
[1749633547250,18.64964886,166.55,166.47,4.40014765]
[1749633547455,10.10557179,166.49,166.45,30.90755349]
[1749633547975,18.64964886,166.55,166.46,4.39995513]
[1749633548181,10.10557179,166.48,166.47,30.39969325]
[1749633548551,10.10557179,166.48,166.47,26.0]
[1749633548751,10.10557179,166.48,166.47,30.39975371]
[1749633548951,10.10557179,166.48,166.47,30.39961908]
[1749633549159,10.10557179,166.48,166.47,30.39988834]
[1749633549361,15.54557179,166.56,166.47,30.39988834]
[1749633549362,10.10557179,166.49,166.47,30.39984803]
[1749633549574,10.10557179,166.49,166.47,26.0]
[1749633549762,10.10557179,166.49,166.48,4.3996386]
[1749633549959,10.10557179,166.49,166.48,4.39410884]
[1749633550167,18.64964886,166.55,166.47,26.0]
[1749633550376,10.10557179,166.49,166.47,26.0]
[1749633552179,10.10557179,166.51,166.48,50.88]
[1749633552550,10.10557179,166.5,166.48,50.88]
[1749633552754,10.10557179,166.49,166.48,50.88]
[1749633553170,10.10557179,166.5,166.48,50.88]
[1749633553368,10.10557179,166.5,166.48,140.78]
[1749633553854,10.10557179,166.51,166.48,140.78]
[1749633555294,1.5384,166.57,166.48,140.78]
[1749633555295,1.5384,166.57,166.48,130.89226889]
[1749633555573,10.10557179,166.55,166.5,10.10557179]
[1749633555790,10.10557179,166.55,166.51,24.88]
[1749633556155,10.10557179,166.54,166.51,24.88]
[1749633558678,1.5651,166.61,166.54,26.0]
[1749633558986,10.10557179,166.59,166.55,24.86]
[1749633559160,10.10557179,166.58,166.55,24.86]
[1749633559562,10.10557179,166.57,166.55,24.86]
[1749633559770,1.5651,166.61,166.55,24.86]
[1749633559771,10.10557179,166.56,166.55,24.86]
[1749633559968,10.10557179,166.56,166.53,24.86]
[1749633560171,10.10557179,166.54,166.53,24.86]
[1749633560696,10.10557179,166.54,166.51,50.88]
[1749633560882,7.8023,166.51,166.35,6.0114217]
[1749633561070,10.10557179,166.36,166.33,17.996941]
[1749633561262,10.10557179,166.4,166.34,25.04]
[1749633561467,10.10557179,166.35,166.34,26.0]
[1749633561687,18.64964886,166.47,166.35,26.0]
[1749633561888,10.10557179,166.37,166.35,26.0]
[1749633562091,10.10557179,166.36,166.35,26.0]
[1749633562274,10.10557179,166.4,166.35,51.04]
[1749633562595,10.10557179,166.39,166.35,51.04]
[1749633562775,10.10557179,166.39,166.35,57.05141264]
[1749633562970,21.85347179,166.48,166.35,57.05141264]
[1749633563189,10.10557179,166.38,166.36,4.35550315]
[1749633563373,16.93556217,166.38,166.35,25.04]
[1749633563691,16.93556217,166.38,166.37,26.0]
[1749633564189,16.93556217,166.38,166.35,25.04]
[1749633564389,16.93556217,166.36,166.35,51.04]
[1749633564894,16.93556217,166.36,166.35,55.39819904]
[1749633565189,18.64964886,166.47,166.35,29.39911741]
[1749633565390,16.93556217,166.39,166.36,4.35863724]
[1749633565690,16.93556217,166.39,166.38,26.0]
[1749633565985,6.2679,166.48,166.38,25.06]
[1749633566186,6.6113,166.53,166.41,26.0]
[1749633566395,6.6113,166.53,166.39,4.35714139]
[1749633566396,6.6113,166.53,166.45,26.0]
[1749633566687,16.93556217,166.48,166.47,26.0]
[1749633566891,16.93556217,166.48,166.44,51.08]
[1749633567199,16.93556217,166.5,166.44,26.0]
[1749633567501,16.93556217,166.5,166.44,51.08]
[1749633567709,16.93556217,166.46,166.44,51.08]
[1749633568068,16.93556217,166.48,166.44,51.08]
[1749633569812,18.64964886,166.52,166.46,26.0]
[1749633569813,16.93556217,166.47,166.46,26.0]
[1749633570095,12.43556981,166.47,166.46,30.42766591]
[1749633570278,12.43556981,166.47,166.46,8.85533074]
[1749633570482,18.64964886,166.52,166.46,34.85502808]
[1749633570483,16.93556217,166.48,166.46,34.85502808]
[1749633570682,16.93556217,166.48,166.47,4.42736271]
[1749633570875,18.64964886,166.52,166.47,4.42749657]
[1749633571076,16.93556217,166.48,166.46,26.0]
[1749633571386,16.93556217,166.48,166.47,8.85477797]
[1749633571593,16.93556217,166.48,166.47,8.85501424]
[1749633571781,16.93556217,166.48,166.47,4.42750617]
[1749633572101,5.48,166.55,166.47,72.4227651]
[1749633572404,16.93556217,166.52,166.48,21.35969735]
[1749633572571,16.93556217,166.52,166.49,4.42384065]
[1749633572770,16.93556217,166.52,166.5,4.42380406]
[1749633572966,16.93556217,166.52,166.51,4.42375804]
[1749633573172,16.93556217,166.54,166.51,4.42357191]
[1749633573368,16.93556217,166.54,166.52,4.42357191]
[1749633573602,16.93556217,166.54,166.48,26.0]
[1749633573603,16.93556217,166.55,166.53,4.42214569]
[1749633573818,16.93556217,166.57,166.52,16.93556217]
[1749633574092,16.93556217,166.57,166.53,4.42105809]
[1749633574295,16.93556217,166.57,166.54,4.42105809]
[1749633574486,16.93556217,166.57,166.55,4.42021125]
[1749633574683,16.93556217,166.57,166.52,42.93556217]
[1749633574684,16.93556217,166.57,166.56,4.42021125]
[1749633575193,16.93556217,166.57,166.56,4.42122057]
[1749633575385,16.93556217,166.57,166.56,4.42057277]
[1749633575983,16.93556217,166.57,166.56,4.42528157]
[1749633576297,16.93556217,166.57,166.56,4.42529054]
[1749633576687,16.93556217,166.57,166.56,4.42571404]
[1749633577001,16.93556217,166.57,166.56,4.42527429]
[1749633577196,16.93556217,166.57,166.52,26.0]
[1749633577400,18.64964886,166.6,166.53,4.42540558]
[1749633577695,16.93556217,166.56,166.54,4.42478222]
[1749633577992,7.7964,166.61,166.52,42.93556217]
[1749633577993,16.93556217,166.58,166.55,4.42478222]
[1749633578208,16.93556217,166.58,166.53,41.95556217]
[1749633578209,16.93556217,166.59,166.57,26.0]
[1749633578380,16.93556217,166.59,166.58,4.42258732]
[1749633578579,16.93556217,166.59,166.58,4.42261894]
[1749633578981,16.93556217,166.59,166.51,6.00555573]
[1749633578982,24.88524886,166.54,166.41,13.30440839]
[1749633579197,16.93556217,166.5,166.45,16.93556217]
[1749633579402,16.93556217,166.5,166.41,6.00921423]
[1749633579403,26.0,166.58,166.49,26.0]
[1749633579579,16.93556217,166.54,166.51,26.0]
[1749633580420,6.2356,166.58,166.48,25.26]